Cogmind - Beta 12 @@@ ROGUE MODE // 2023.09.22 @ 06:04:02 Player: T1-4MT Result: Destroyed by YI-UF0 with YI-UF0's Doublenader Performance ------------- Evolutions (0) 0 Regions Visited (2) 400 Robots Destroyed (19) 95 Value Destroyed (401) 401 Prototype IDs (2) 40 Alien Tech Used (0) 0 Bonus (-39) -39 TOTAL SCORE: 897 Bonus ------- Friendly Fire -39 Cogmind --------- Core Integrity 0/250 Matter 290/300 Energy 42/100 System Corruption 1% Temperature Cool (0) Movement Core (400) Ox7 Location -10/Mines Parts ------- > --- POWER (1) -------- (None) > --- PROPULSION (2) --- (None) > --- UTILITY (2) ------ Heat Sink Large Storage Unit > --- WEAPON (2) ------- EM Pulse Gun > --- INVENTORY (15) --- Ion Engine Light Treads Wheel Compact Wheel High-capacity Matter Pod (200) Structural Scanner Sensor Array Signal Interpreter Terrain Scanner Light Armor Plating Light Armor Plating Light Armor Plating Assault Rifle Grenade Launcher Peak State ------------ > --- POWER ------------ Ion Engine > --- PROPULSION ------- Light Treads Light Treads > --- UTILITY ---------- Heat Sink Large Storage Unit > --- WEAPON ----------- Medium Laser Small Laser > --- INVENTORY -------- Ion Engine Wheel Compact Wheel High-capacity Matter Pod Structural Scanner Sensor Array Signal Interpreter Terrain Scanner EM Pulse Gun Assault Rifle [Rating: 8] Favorites ----------- Power Ion Engine Engine Ion Engine Propulsion Light Treads Treads Light Treads Utility Large Storage Unit Device Heat Sink Storage Large Storage Unit Weapon Small Laser Energy Gun Small Laser Launcher Grenade Launcher Build | -11 -10 -10 ------- Run | Jun Mat Min Slots Evolved . | . . . Power . | . . . Propulsion . | . . . Utility . | . . . Weapon . | . . . Parts Attached 11 | 6 3 2 Power 1 | 1 . . Engine 1 | 1 . . Core . | . . . Reactor . | . . . Propulsion 3 | 2 1 . Treads 3 | 2 1 . Leg . | . . . Wheel . | . . . Hover . | . . . Flight . | . . . Utility 3 | 1 2 . Device 1 | . 1 . Storage 2 | 1 1 . Processor . | . . . Hackware . | . . . Protection . | . . . Artifact . | . . . Weapon 4 | 2 . 2 Energy Gun 3 | 2 . 1 Energy Cannon . | . . . Ballistic Gun . | . . . Ballistic Cannon . | . . . Launcher 1 | . . 1 Special Weapon . | . . . Impact Weapon . | . . . Slashing Weapon . | . . . Piercing Weapon . | . . . Special Melee Weapon . | . . . Unidentified Prototypes . | . . . Parts Lost 4 | . . 4 Power . | . . . Propulsion 2 | . . 2 Utility . | . . . Weapon 2 | . . 2 Highest Loss Streak 2 | . . 2 To Critical Strikes . | . . . Average Slot Usage (%) 91 | . 91 90 Engine 13 | . 14 13 Treads 25 | . 27 20 Device 8 | . 6 14 Storage 14 | . 14 14 Energy Gun 25 | . 28 20 Launcher 2 | . . 7 Naked Turns . | . . . Heaviest Build 30 | 13 29 30 Greatest Support 40 | 40 40 40 Greatest Overweight (x) 1 | . . 1 Average Overweight (x) . | . . . Largest Inventory Capacity 15 | 8 15 15 Average Capacity 14 | 6 14 15 Most Carried 15 | 4 14 15 Average Carried 9 | 2 7 14 Final Capacity 15 | 8 15 15 Final Carried 14 | 4 14 14 Class Distribution -------------------- 100% | Mutant Dominant Class ---------------- Mutant | -10/Materials Mutant | -10/Mines Resources | -11 -10 -10 ----------- Run | Jun Mat Min Matter Collected 502 | 163 320 19 Remotely . | . . . Salvage Created 642 | . 508 134 Parts 42 | . 37 5 Haulers Intercepted 1 | . 1 . Recyclers Shooed 1 | . 1 . Parts Field Recycled . | . . . Retrieved Matter . | . . . Parts Self-Destructed . | . . . Prevented . | . . . Kills | -11 -10 -10 ------- Run | Jun Mat Min Combat Hostiles Destroyed 17 | . 12 5 Guns 16 | . 12 4 AOE 1 | . . 1 Classes Destroyed 6 | . 5 1 Hauler 1 | . 1 . Recycler 1 | . 1 . Watcher 3 | . 3 . Swarmer 6 | . 6 . Grunt 8 | . 6 2 Assembled 3 | . . 3 Best Kill Streak 4 | . 4 3 Combat Bots Only 4 | . 4 3 Max Kills in Single Turn 2 | . 2 1 Gunslinging 1 | . 1 . Exploded 1 | . . 1 Melee . | . . . Uniques/NPCs Destroyed . | . . . Combat | -11 -10 -10 -------- Run | Jun Mat Min Damage Taken 899 | . 402 497 Core 253 | . 100 153 Absorbed by Shields . | . . . Regen/Repaired (Parts) 87 | . 87 . Core Remaining (%) 100 | 100 . . Volleys Fired 65 | . 52 13 Largest 2 | . 2 2 Hottest 90 | . 90 90 Shots Fired 127 | . 103 24 Gun 126 | . 103 23 Cannon . | . . . Launcher 1 | . . 1 Special . | . . . Kinetic . | . . . Thermal 124 | . 103 21 Explosive 1 | . . 1 Electromagnetic 2 | . . 2 Robot Hit Streak 9 | . 8 9 Robot Miss Streak 8 | . 8 2 Penetration Max . | . . . Secondary Targets 4 | . 3 1 Max Gunslinging Chain 1 | . 1 1 Shots Hit Robots 71 | . 54 17 Core Hits 36 | . 25 11 Critical Kills . | . . . Critical Parts Destroyed . | . . . Critical Strikes 3 | . 3 . Burn 3 | . 3 . Melee Attacks . | . . . Impact . | . . . Slashing . | . . . Piercing . | . . . Sneak Attacks . | . . . Combat Hostiles . | . . . Follow-up Attacks . | . . . Damage Inflicted 949 | . 670 279 Guns 845 | . 646 199 Cannons . | . . . Explosions 80 | . . 80 Melee . | . . . Ramming 24 | . 24 . Kinetic . | . . . Thermal 845 | . 646 199 Explosive 80 | . . 80 Electromagnetic . | . . . Impact . | . . . Slashing . | . . . Piercing . | . . . Highest Corruption 1 | . 1 1 Average Corruption 1 | . 1 1 Corruption Purged . | . . . Corruption Blocked . | . . . Effects 7 | . 2 5 Message Errors 3 | . 1 2 Matter Fused 2 | . . 2 Energy Discharges 1 | . 1 . Parts Rejected 1 | . . 1 Overload Shots . | . . . Overflow Damage . | . . . Projectiles . | . . . Explosions . | . . . Melee . | . . . Knockbacks . | . . . Impact . | . . . Kinetic . | . . . Secondary . | . . . Self-Inflicted Damage 39 | . . 39 Shots 1 | . . 1 Rammed 4 | . 4 . Targets Rammed 4 | . 4 . Kicked . | . . . Crushed . | . . . Highest Temperature 334 | . 334 57 Average Temperature 85 | . 93 31 Received Heat Transfer 162 | . 96 66 Effects 1 | . 1 . Energy Bleed 1 | . 1 . Siege Activations . | . . . Robots Corrupted . | . . . Combat Hostiles . | . . . Parts Fried . | . . . Impact Corruptions . | . . . Robots Melted . | . . . Combat Hostiles . | . . . Parts Melted 6 | . 5 1 Heat Transferred 2441 | . 1920 521 Parts Sabotaged . | . . . Parts Stolen . | . . . Parts Stripped . | . . . Power Chain Reactions . | . . . Missiles Intercepted . | . . . Alert | -11 -10 -10 ------- Run | Jun Mat Min Peak Influence 253 | . 253 108 Initial 58 | . . 58 Average 96 | . 117 69 Maximum Alert Level 1 | . 1 . Low Security (%) 88 | 100 81 100 Level 1 11 | . 18 . Level 2 . | . . . Level 3 . | . . . Level 4 . | . . . Level 5 . | . . . High Security . | . . . Max Security . | . . . Squads Dispatched 4 | . 4 . Investigation 1 | . 1 . Extermination . | . . . Reinforcement 3 | . 3 . Assault . | . . . Garrison . | . . . Intercept . | . . . Searches Triggered . | . . . Construction Impeded . | . . . Haulers Reinforced . | . . . Active Scanning Responses . | . . . Cargo Convoy Interrupts . | . . . Stealth | -11 -10 -10 --------- Run | Jun Mat Min Distress Signals . | . . . Communications Jammed . | . . . Distress Signals . | . . . Times Spotted 32 | . 22 10 Peak Tracking Total 6 | . 3 6 Tactical Retreats 2 | . 1 1 Traps | -11 -10 -10 ------- Run | Jun Mat Min Traps Triggered 3 | . 3 . Indirectly . | . . . Trap Hack Attempts . | . . . Triggered . | . . . Disarmed . | . . . Reprogrammed . | . . . Reused . | . . . Traps Extracted . | . . . Installed . | . . . Triggered . | . . . Machines | -11 -10 -10 ---------- Run | Jun Mat Min Machines Disabled . | . . . Max in Single Turn . | . . . Machines Repaired . | . . . Machines Sabotaged . | . . . Overloaded Fab Kills . | . . . Hacking | -11 -10 -10 --------- Run | Jun Mat Min Machines Accessed 6 | . 6 . Terminals 5 | . 5 . Fabricators . | . . . Repair Stations 1 | . 1 . Recycling Units . | . . . Scanalyzers . | . . . Garrison Access . | . . . Total Hacks 26 | . 26 . Successful 14 | . 14 . Failed 12 | . 12 . Catastrophic . | . . . Database Lockouts . | . . . Manual 14 | . 14 . Terminals 21 | . 21 . Fabricators . | . . . Repair Stations 5 | . 5 . Recycling Units . | . . . Scanalyzers . | . . . Garrison Access . | . . . Terminal Hacks 7 | . 7 . Part Schematic 2 | . 2 . Prototype ID Bank 1 | . 1 . Branch Access Points 1 | . 1 . Locate Traps 2 | . 2 . Zone Layout 1 | . 1 . Fabricator Hacks . | . . . Repair Station Hacks 3 | . 3 . Scan Component 2 | . 2 . Repair 1 | . 1 . Recycling Unit Hacks . | . . . Scanalyzer . | . . . Garrison Access Hacks . | . . . Unauthorized Hacks 4 | . 4 . Terminals 4 | . 4 . Botnet 4 | . 4 . Fabricators . | . . . Repair Stations . | . . . Recycling Units . | . . . Scanalyzers . | . . . Garrison Access . | . . . Data Cores Recovered . | . . . Used . | . . . Hacking Detections 6 | . 6 . Full Trace Events . | . . . Feedback Events . | . . . Feedback Blocked . | . . . Robot Schematics Acquired . | . . . Robots Built . | . . . Authchips . | . . . Time . | . . . Total Robot Build Rating . | . . . Part Schematics Acquired 2 | . 2 . Parts Built . | . . . Authchips . | . . . Time . | . . . Total Part Build Rating . | . . . Parts Repaired 1 | . 1 . Time 13 | . 13 . Parts Recycled . | . . . Recycled Matter . | . . . Retrieved Matter . | . . . Retrieved Components . | . . . Parts Scanalyzed . | . . . Part Schematics Acquired . | . . . Parts Damaged . | . . . Bothacking | -11 -10 -10 ------------ Run | Jun Mat Min Used RIF Installer . | . . . Robots Hacked . | . . . Non-combat . | . . . Combat . | . . . Robot Hacks Applied . | . . . Relay Couplers Released . | . . . Fabnet Peak Effective % . | . . . Robots Rewired . | . . . Allies Hacked . | . . . Hacks Repelled . | . . . Allies | -11 -10 -10 -------- Run | Jun Mat Min Total Allies . | . . . Largest Group . | . . . Highest-Rated Group . | . . . Highest-Rated Ally . | . . . Total Orders . | . . . Ally Attacks . | . . . Total Damage . | . . . Kills . | . . . Allies Corrupted . | . . . Allies Melted . | . . . Intel | -11 -10 -10 ------- Run | Jun Mat Min Robot Analysis Total . | . . . Derelict Logs Recovered 1 | . . 1 Drone Launches . | . . . Drone Recoveries . | . . . Exploration | -11 -10 -10 ------------- Run | Jun Mat Min Turns Passed 1692 | 76 1051 565 Spaces Moved 830 | 42 533 255 Core 3 | 3 . . Treads 827 | 39 533 255 Legs . | . . . Wheels . | . . . Hover . | . . . Flight . | . . . Fastest Speed 50 | 50 160 160 Average Speed 171 | 152 160 198 Slowest Speed 240 | 160 160 240 Overloaded Moves . | . . . Propulsion Burnouts . | . . . Robots Hopped . | . . . Cave-ins Triggered . | . . . Exploration Rate (%) 40 | 5 75 40 Regions Visited 2 Branch Regions 1 Pre-discovered Areas 1 | . . 1 Known Exits Taken 1 | . 1 . Unknown Exits Taken 1 | 1 . . Scrap Searched 1 | . . 1 Spaces Dug . | . . . Terrain Destroyed 10 | . . 10 Melee . | . . . Projectile . | . . . AOE 10 | . . 10 Terrain Rammed . | . . . Walls Destroyed . | . . . Machines Disabled . | . . . Actions | -11 -10 -10 --------- Run | Jun Mat Min Total 967 | 51 625 291 Wait 43 | . 23 20 Move 828 | 41 532 255 Hop . | . . . Pick Up 15 | 4 10 1 Fast Attach 9 | 6 3 . Attach 1 | . . 1 Detach . | . . . Swap 1 | . . 1 Drop 1 | . 1 . Fire 65 | . 52 13 Melee . | . . . Ram . | . . . Kick . | . . . Crush 4 | . 4 . Escape Stasis . | . . . Rewire . | . . . Trap . | . . . Miscellaneous . | . . . Route ------- -11/Junkyard -10/Materials (discovered 3 exits: [*Mat] / *Min x2) -10/Mines History --------- Turn | Location | Event 8 | -11/Junkyard | Discovered new exit (range 15) 77 | -11/Junkyard | Entered Materials 90 | -10/Materials | Identified exit to Mines 312 | -10/Materials | Build established: Mutant 541 | -10/Materials | Discovered new exit (range 5) 993 | -10/Materials | Repaired Lgt. Treads 1128 | -10/Materials | Entered Mines 1157 | -10/Mines | Learned location of Zion (-6) 1170 | -10/Mines | Core integrity fell below 50% 1178 | -10/Mines | YI-UF0 nonchalantly dropped a Grenade Launcher on the ground 1349 | -10/Mines | Assembled infested the area 1376 | -10/Mines | Core integrity fell below 20% 1693 | -10/Mines | Destroyed by YI-UF0 with YI-UF0's Doublenader Last Messages --------------- 01379_ as-86123 destroyed. 01383_ Acquired 19 matter. 01385_ K-01 Serf collects debris. 01434_ T-07 Excavator is excavating. 01445_ System corrupted: Matter fused (-10). 01455_ K-01 Serf collects debris. 01468_ Q:6WBP9WLS|8ZABZQ%NEIFN6IXE 01470_ K-01 Serf collects debris. 01533_ K-01 Serf cleans the Laser Drill. 01537_ K-01 Serf collects debris. 01658_ System corrupted: Ion Engine rejected. 01658_ YI-UF0: "BWOOM!" 01660_ K-01 Serf collects debris. 01679_ T-07 Excavator is excavating. 01680_ K-01 Serf collects debris. 01683_ K-01 Serf destroyed. 01684_ T-07 Excavator is excavating. 01691_ Lgt. Treads destroyed. 01693_ T-07 Excavator is excavating. 01693_ Sml. Laser destroyed. Map ----- +----------------------------------------------------+ | ?????????????????????????????????????????????????? | | ???????????????????????????????#####?????????????? | | ???????????????????????????????? $??????????????? | | ???????????????????????????????? %??????????????? | | ????????????????????????????????# #??????????????? | | ????????????????????????????????# #??????????????? | | ????????????????????????????????# #??????????????? | | ???###??????????????##??????????# ######?????????? | | ??## ##??????????## #??????????# ######????? | | ?## ##????????## #??????????# %%]!%!! #?#### | | ?# ##??????## #??????????## #### #?# | | ?# ##????## ##???????????#######??# #?# | | ?# ###### ##???????############## #?# | | ??# ###?????#* * # | | ??## """ ####### ##### # | | ???## """ #???# #????##### | | ????# """ ###### ##??# #????????# | | ????## ##??? ##?# ##???????# | | ?????##### ### ####???? g ### ##??????# | | ?????????## ##?####?????? ## #??????# | | ??????????# ##??????????? ## #??????# % | | ??????????# ###??????### ## #??????### | | ??????????# ##???### ## ##########% | | ??????????# #???# #?# | | ??????????# #???# ##?## ########## | | ?????????## ##???# @ ##???# ##????????? | | ?????##### ###????# ##???## ##?????????? | | ???### ##??????# #??## #??????????? | | ??## #???????# ### #??????????? | | ??# ##???????# ## ##?????????? | | ??# ##????????#### t ## #?????????? | | ??## ## #?????????????# ### #????????? | | ???##?## ##??????????????#####?#### #???????? | | ???????#####????????????????????????#### #??????? | | ????????????????????????????????????????###??????? | | ?????????????????????????????????????????????????? | | ?????????????????????????????????????????????????? | | ?????????????????????????????????????????????????? | | ?????????????????????????????????????????????????? | | ?????????????????????????????????????????????????? | | ?????????????????????????????????????????????????? | | | | | | | | | | | | | | | | | | | +----------------------------------------------------+ Best States ------------- Heat Dissipation 35 Energy Generation 10 Energy Capacity 250 Matter Stores 300 Matter Capacity 300 Sight Range 16 Terrain Scan Density 10 Evasion (%) 40 Recoil Reduction 2 Item Schematics ----------------- Hcp. Storage Unit | -10/Materials | Hacked Huge Storage Unit | -10/Materials | Hacked Robot Schematics ------------------ None Fabricated ------------ Nothing Alien Tech Used ----------------- None Achievements -------------- root@ Challenges ------------ None Game ------ Seed CargoBarrageFacilitator Manual? 0 Play Time 00:15:09 Cumulative 57.5 hours Start 2023.09.22 @ 05:48:24 End 2023.09.22 @ 06:04:02 Sessions 1 Manual Loads 0 Difficulty Rogue Special Mode None Game No. 19 Rogue 19 Adventurer 0 Explorer 0 Win Type - Total 3 Types 3/0/0/0/0/0/0/0/0 Lore% 44 Gallery% 44 Achievement% 39 Wizard Run 0 Options --------- ASCII 0 Keyboard 0 Movement Numpad Keybinds 0 Fullscreen 1 Font 24/Smallcaps Map View 76x50 Tactical HUD 1 Map Filters NONE Filters NONE Steam 1 RUN: bffd62d7-00dd-4bfc-ac78-ddbd32fe4ab3